[Event "Titled Tuesday Blitz March 14 Late 2023"]
[White "Klose, Eli"]
[Black "Sanchez Alvares, Kelvin Antonio"]
[WhiteFideId "16242955"]
[BlackFideId "3906680"]
[WhiteElo "2626"]
[BlackElo "2217"]
[Result "1/2-1/2"]
[Round "05"]
[TimeControl "180+2"]
[Date "2023.03.14"]
[WhiteClock "0:00:09"]
[BlackClock "0:00:09"]

1. e4 {[%clk 0:02:58]}  e5 {[%clk 0:02:59]} 2. Nf3 {[%clk 0:02:54]}  Nc6 {[%clk 0:02:59]} 3. d4 {[%clk 0:02:55]}  exd4 {[%clk 0:02:56]} 4. Bc4 {[%clk 0:02:55]}  Bb4+ {[%clk 0:02:55]} 5. c3 {[%clk 0:02:55]}  dxc3 {[%clk 0:02:55]} 6. O-O {[%clk 0:02:55]}  Nf6 {[%clk 0:02:52]} 7. e5 {[%clk 0:02:54]}  d5 {[%clk 0:02:52]} 8. Bb3 {[%clk 0:02:49]}  Ne4 {[%clk 0:02:50]} 9. a3 {[%clk 0:02:47]}  Be7 {[%clk 0:02:36]} 10. Bxd5 {[%clk 0:02:46]}  cxb2 {[%clk 0:02:31]} 11. Bxb2 {[%clk 0:02:41]}  Nc5 {[%clk 0:02:31]} 12. Nc3 {[%clk 0:02:21]}  O-O {[%clk 0:02:28]} 13. Qc2 {[%clk 0:02:11]}  Ne6 {[%clk 0:02:16]} 14. Rad1 {[%clk 0:02:09]}  Qe8 {[%clk 0:02:16]} 15. Be4 {[%clk 0:02:06]}  g6 {[%clk 0:02:12]} 16. Nd5 {[%clk 0:02:04]}  Bd7 {[%clk 0:02:04]} 17. Rfe1 {[%clk 0:02:04]}  Rd8 {[%clk 0:02:02]} 18. h3 {[%clk 0:01:49]}  Bc8 {[%clk 0:02:01]} 19. h4 {[%clk 0:01:47]}  Rd7 {[%clk 0:01:39]} 20. h5 {[%clk 0:01:44]}  Qd8 {[%clk 0:01:39]} 21. hxg6 {[%clk 0:01:44]}  fxg6 {[%clk 0:01:26]} 22. Bxg6 {[%clk 0:01:33]}  Rxd5 {[%clk 0:01:22]} 23. Bxh7+ {[%clk 0:01:33]}  Kh8 {[%clk 0:01:20]} 24. Be4 {[%clk 0:01:27]}  Rxd1 {[%clk 0:01:14]} 25. Rxd1 {[%clk 0:01:28]}  Qe8 {[%clk 0:01:14]} 26. Bg6 {[%clk 0:01:27]}  Rf7 {[%clk 0:01:01]} 27. Qe4 {[%clk 0:01:06]}  Qg8 {[%clk 0:00:58]} 28. Bxf7 {[%clk 0:01:06]}  Qxf7 {[%clk 0:00:57]} 29. Qg4 {[%clk 0:01:04]}  Qg7 {[%clk 0:00:45]} 30. Qh5+ {[%clk 0:01:01]}  Kg8 {[%clk 0:00:45]} 31. g3 {[%clk 0:00:54]}  Qf7 {[%clk 0:00:39]} 32. Qg4+ {[%clk 0:00:46]}  Qg7 {[%clk 0:00:39]} 33. Qh5 {[%clk 0:00:45]}  Qf7 {[%clk 0:00:38]} 34. Qg4+ {[%clk 0:00:32]}  Qg7 {[%clk 0:00:38]} 35. Qe4 {[%clk 0:00:32]}  Qh7 {[%clk 0:00:35]} 36. Qxh7+ {[%clk 0:00:24]}  Kxh7 {[%clk 0:00:34]} 37. Nd2 {[%clk 0:00:25]}  b6 {[%clk 0:00:30]} 38. f4 {[%clk 0:00:22]}  Ng7 {[%clk 0:00:22]} 39. Ne4 {[%clk 0:00:19]}  Nd8 {[%clk 0:00:18]} 40. Nf6+ {[%clk 0:00:18]}  Kg6 {[%clk 0:00:17]} 41. Kh2 {[%clk 0:00:16]}  Bf5 {[%clk 0:00:12]} 42. Ng8 {[%clk 0:00:16]}  Kf7 {[%clk 0:00:10]} 43. Nxe7 {[%clk 0:00:13]}  Kxe7 {[%clk 0:00:11]} 44. a4 {[%clk 0:00:13]}  c5 {[%clk 0:00:11]} 45. Kg2 {[%clk 0:00:11]}  Nde6 {[%clk 0:00:11]} 46. Rh1 {[%clk 0:00:11]}  Be4+ {[%clk 0:00:11]} 47. Kg1 {[%clk 0:00:11]}  Bxh1 {[%clk 0:00:11]} 48. Kxh1 {[%clk 0:00:12]}  Kf7 {[%clk 0:00:12]} 49. Kg2 {[%clk 0:00:13]}  Kg6 {[%clk 0:00:12]} 50. Kf3 {[%clk 0:00:13]}  Nf5 {[%clk 0:00:12]} 51. g4 {[%clk 0:00:12]}  a6 {[%clk 0:00:11]} 52. Ke4 {[%clk 0:00:11]}  Ng3+ {[%clk 0:00:10]} 53. Kf3 {[%clk 0:00:11]}  Nf5 {[%clk 0:00:09]} 54. Ke4 {[%clk 0:00:11]}  Ng3+ {[%clk 0:00:09]} 55. Kf3 {[%clk 0:00:09]}  Nf5 {[%clk 0:00:09]} 1/2-1/2


[Site "https://www.chess.com"]

[Event "Titled Tuesday Blitz March 14 Late 2023"]
[White "Kielinkei"]
[Black "Crevatin, Leo"]
[BlackFideId "1726307"]
[WhiteElo "2432"]
[BlackElo "2190"]
[Result "0-1"]
[Round "05"]
[TimeControl "180+2"]
[Date "2023.03.14"]
[WhiteClock "0:00:03"]
[BlackClock "0:00:41"]

1. Nf3 {[%clk 0:03:00]}  d5 {[%clk 0:02:58]} 2. g3 {[%clk 0:03:00]}  Nf6 {[%clk 0:02:57]} 3. Bg2 {[%clk 0:03:00]}  e6 {[%clk 0:02:57]} 4. O-O {[%clk 0:02:59]}  c5 {[%clk 0:02:49]} 5. c4 {[%clk 0:02:56]}  Be7 {[%clk 0:02:46]} 6. cxd5 {[%clk 0:02:54]}  Nxd5 {[%clk 0:02:47]} 7. d4 {[%clk 0:02:53]}  b6 {[%clk 0:02:44]} 8. e4 {[%clk 0:02:44]}  Nf6 {[%clk 0:02:43]} 9. e5 {[%clk 0:02:20]}  Nd5 {[%clk 0:02:42]} 10. dxc5 {[%clk 0:02:13]}  Bxc5 {[%clk 0:02:41]} 11. Ng5 {[%clk 0:01:57]}  Bb7 {[%clk 0:02:36]} 12. Ne4 {[%clk 0:01:54]}  Be7 {[%clk 0:02:35]} 13. Nbc3 {[%clk 0:01:53]}  O-O {[%clk 0:02:30]} 14. Nxd5 {[%clk 0:01:51]}  Bxd5 {[%clk 0:02:31]} 15. Bf4 {[%clk 0:01:31]}  Nc6 {[%clk 0:02:30]} 16. Rc1 {[%clk 0:01:18]}  Rc8 {[%clk 0:02:29]} 17. Nd6 {[%clk 0:01:12]}  Bxd6 {[%clk 0:02:29]} 18. exd6 {[%clk 0:01:13]}  Bxg2 {[%clk 0:02:27]} 19. Kxg2 {[%clk 0:01:14]}  e5 {[%clk 0:02:26]} 20. Be3 {[%clk 0:01:01]}  Qd7 {[%clk 0:02:21]} 21. Qd5 {[%clk 0:00:58]}  Nb4 {[%clk 0:02:10]} 22. Qxe5 {[%clk 0:00:43]}  Nd3 {[%clk 0:01:24]} 23. Qe7 {[%clk 0:00:41]}  Rcd8 {[%clk 0:01:16]} 24. Rc7 {[%clk 0:00:29]}  Qxd6 {[%clk 0:01:10]} 25. Qxd6 {[%clk 0:00:30]}  Rxd6 {[%clk 0:01:10]} 26. Rxa7 {[%clk 0:00:30]}  Nxb2 {[%clk 0:01:10]} 27. Rb7 {[%clk 0:00:18]}  Nc4 {[%clk 0:01:10]} 28. Bf4 {[%clk 0:00:18]}  Rc6 {[%clk 0:01:04]} 29. Rc1 {[%clk 0:00:12]}  Rfc8 {[%clk 0:01:04]} 30. Kg1 {[%clk 0:00:05]}  h6 {[%clk 0:00:52]} 31. Rd1 {[%clk 0:00:04]}  g5 {[%clk 0:00:41]} 32. Bc1 {[%clk 0:00:03]}  Na5 {[%clk 0:00:42]} 33. Ra7 {[%clk 0:00:03]}  Rxc1 {[%clk 0:00:41]} 0-1


[Site "https://www.chess.com"]

[Event "Titled Tuesday Blitz March 14 Late 2023"]
[White "Bove, Alessandro"]
[Black "Roebers, Eline"]
[WhiteFideId "814121"]
[BlackFideId "1058401"]
[WhiteElo "2387"]
[BlackElo "2540"]
[Result "0-1"]
[Round "05"]
[TimeControl "180+2"]
[Date "2023.03.14"]
[WhiteClock "0:00:10"]
[BlackClock "0:00:14"]

1. d4 {[%clk 0:03:00]}  f5 {[%clk 0:02:57]} 2. c4 {[%clk 0:02:59]}  Nf6 {[%clk 0:02:57]} 3. Nc3 {[%clk 0:03:00]}  g6 {[%clk 0:02:56]} 4. b3 {[%clk 0:03:00]}  Bg7 {[%clk 0:02:55]} 5. Bb2 {[%clk 0:03:01]}  O-O {[%clk 0:02:55]} 6. Qc2 {[%clk 0:03:01]}  d6 {[%clk 0:02:55]} 7. e4 {[%clk 0:03:00]}  Nc6 {[%clk 0:02:53]} 8. Nf3 {[%clk 0:02:57]}  Nb4 {[%clk 0:02:47]} 9. Qc1 {[%clk 0:02:48]}  fxe4 {[%clk 0:02:44]} 10. Nd2 {[%clk 0:02:46]}  e3 {[%clk 0:02:29]} 11. fxe3 {[%clk 0:02:40]}  Ng4 {[%clk 0:02:29]} 12. Nd1 {[%clk 0:02:26]}  e5 {[%clk 0:02:08]} 13. a3 {[%clk 0:02:13]}  Nc6 {[%clk 0:02:06]} 14. d5 {[%clk 0:02:06]}  Nd4 {[%clk 0:01:26]} 15. exd4 {[%clk 0:01:45]}  exd4 {[%clk 0:01:27]} 16. Be2 {[%clk 0:01:45]}  Qe7 {[%clk 0:00:48]} 17. Bxd4 {[%clk 0:01:11]}  Bxd4 {[%clk 0:00:45]} 18. Ra2 {[%clk 0:01:11]}  Ne5 {[%clk 0:00:34]} 19. Ne3 {[%clk 0:00:12]}  Bxe3 {[%clk 0:00:29]} 20. Qc2 {[%clk 0:00:12]}  Bf5 {[%clk 0:00:27]} 21. Ne4 {[%clk 0:00:12]}  Ng4 {[%clk 0:00:18]} 22. Bf3 {[%clk 0:00:09]}  Rae8 {[%clk 0:00:16]} 23. h3 {[%clk 0:00:09]}  Nf6 {[%clk 0:00:14]} 24. Nxf6+ {[%clk 0:00:09]}  Rxf6 {[%clk 0:00:15]} 25. Kd1 {[%clk 0:00:09]}  Bxc2+ {[%clk 0:00:14]} 26. Kxc2 {[%clk 0:00:10]} 0-1


[Site "https://www.chess.com"]

[Event "Titled Tuesday Blitz March 14 Late 2023"]
[White "Sonnenschein, Philipp"]
[Black "Gharamian, Tigran"]
[WhiteFideId "16250877"]
[BlackFideId "13301527"]
[WhiteElo "2224"]
[BlackElo "2632"]
[Result "1-0"]
[Round "05"]
[TimeControl "180+2"]
[Date "2023.03.14"]
[WhiteClock "0:00:43"]
[BlackClock "0:00:02"]

1. e4 {[%clk 0:03:00]}  c6 {[%clk 0:02:58]} 2. d4 {[%clk 0:03:00]}  d5 {[%clk 0:02:59]} 3. exd5 {[%clk 0:03:00]}  cxd5 {[%clk 0:02:59]} 4. Bd3 {[%clk 0:03:01]}  Nc6 {[%clk 0:02:58]} 5. c3 {[%clk 0:03:01]}  Qc7 {[%clk 0:02:58]} 6. h3 {[%clk 0:03:00]}  Nf6 {[%clk 0:02:57]} 7. Nf3 {[%clk 0:03:00]}  g6 {[%clk 0:02:57]} 8. O-O {[%clk 0:03:00]}  Bg7 {[%clk 0:02:57]} 9. Re1 {[%clk 0:03:01]}  Bf5 {[%clk 0:02:56]} 10. Bf1 {[%clk 0:02:57]}  O-O {[%clk 0:02:54]} 11. Na3 {[%clk 0:02:57]}  a6 {[%clk 0:02:52]} 12. Nc2 {[%clk 0:02:57]}  Rfe8 {[%clk 0:02:37]} 13. Ne3 {[%clk 0:02:53]}  Bd7 {[%clk 0:02:36]} 14. Bd3 {[%clk 0:02:50]}  b5 {[%clk 0:02:35]} 15. Ne5 {[%clk 0:02:24]}  Nxe5 {[%clk 0:02:24]} 16. dxe5 {[%clk 0:02:24]}  Qxe5 {[%clk 0:02:24]} 17. Nf5 {[%clk 0:02:23]}  Qc7 {[%clk 0:02:10]} 18. Nxe7+ {[%clk 0:02:23]}  Kf8 {[%clk 0:01:56]} 19. Qe2 {[%clk 0:01:59]}  Be6 {[%clk 0:01:54]} 20. b3 {[%clk 0:01:50]}  Qxe7 {[%clk 0:01:44]} 21. a4 {[%clk 0:01:50]}  Kg8 {[%clk 0:01:39]} 22. axb5 {[%clk 0:01:45]}  axb5 {[%clk 0:01:38]} 23. Rxa8 {[%clk 0:01:45]}  Rxa8 {[%clk 0:01:37]} 24. Bxb5 {[%clk 0:01:45]}  Qc5 {[%clk 0:01:31]} 25. c4 {[%clk 0:01:35]}  dxc4 {[%clk 0:01:08]} 26. Bxc4 {[%clk 0:01:34]}  Bxc4 {[%clk 0:01:04]} 27. bxc4 {[%clk 0:01:35]}  Rc8 {[%clk 0:00:57]} 28. Bb2 {[%clk 0:01:28]}  Nd7 {[%clk 0:00:32]} 29. Bxg7 {[%clk 0:01:24]}  Kxg7 {[%clk 0:00:33]} 30. Qb2+ {[%clk 0:01:18]}  Nf6 {[%clk 0:00:32]} 31. Rc1 {[%clk 0:01:12]}  Rc6 {[%clk 0:00:32]} 32. Qb7 {[%clk 0:01:11]}  Rc7 {[%clk 0:00:28]} 33. Qf3 {[%clk 0:01:10]}  Re7 {[%clk 0:00:24]} 34. g3 {[%clk 0:01:09]}  Re4 {[%clk 0:00:22]} 35. Qc3 {[%clk 0:01:07]}  Re2 {[%clk 0:00:20]} 36. Qf3 {[%clk 0:01:07]}  Re4 {[%clk 0:00:19]} 37. Qc3 {[%clk 0:01:05]}  Qd4 {[%clk 0:00:19]} 38. Qf3 {[%clk 0:01:04]}  Qd2 {[%clk 0:00:16]} 39. Rf1 {[%clk 0:01:00]}  Re1 {[%clk 0:00:15]} 40. c5 {[%clk 0:01:00]}  Rxf1+ {[%clk 0:00:15]} 41. Kxf1 {[%clk 0:01:01]}  Qc1+ {[%clk 0:00:16]} 42. Kg2 {[%clk 0:01:02]}  Qxc5 {[%clk 0:00:16]} 43. Qe2 {[%clk 0:00:58]}  Qd5+ {[%clk 0:00:16]} 44. Kg1 {[%clk 0:00:58]}  Qe4 {[%clk 0:00:17]} 45. Qa6 {[%clk 0:00:57]}  h5 {[%clk 0:00:17]} 46. h4 {[%clk 0:00:57]}  Ng4 {[%clk 0:00:16]} 47. Qa1+ {[%clk 0:00:57]}  Kh7 {[%clk 0:00:14]} 48. Qa2 {[%clk 0:00:58]}  Qe1+ {[%clk 0:00:14]} 49. Kg2 {[%clk 0:00:58]}  Qe6 {[%clk 0:00:13]} 50. Qb2 {[%clk 0:00:57]}  Ne5 {[%clk 0:00:12]} 51. Qe2 {[%clk 0:00:55]}  Qd5+ {[%clk 0:00:12]} 52. Kh2 {[%clk 0:00:52]}  Nf3+ {[%clk 0:00:10]} 53. Kh3 {[%clk 0:00:52]}  Qf5+ {[%clk 0:00:09]} 54. Kg2 {[%clk 0:00:52]}  Ne5 {[%clk 0:00:09]} 55. f3 {[%clk 0:00:49]}  Kg7 {[%clk 0:00:08]} 56. Qb2 {[%clk 0:00:48]}  Qf6 {[%clk 0:00:07]} 57. Qe2 {[%clk 0:00:47]}  Nc6 {[%clk 0:00:04]} 58. Qe4 {[%clk 0:00:47]}  Nd4 {[%clk 0:00:04]} 59. f4 {[%clk 0:00:45]}  Nf5 {[%clk 0:00:03]} 60. Kh3 {[%clk 0:00:44]}  Qa1 {[%clk 0:00:02]} 61. Kg2 {[%clk 0:00:44]}  Qb2+ {[%clk 0:00:03]} 62. Kh3 {[%clk 0:00:44]}  Qc3 {[%clk 0:00:02]} 63. Qg2 {[%clk 0:00:43]} 1-0


[Site "https://www.chess.com"]

[Event "Titled Tuesday Blitz March 14 Late 2023"]
[White "Kowalysko, Roman"]
[Black "marik_spb"]
[WhiteFideId "30918510"]
[WhiteElo "2244"]
[BlackElo "2411"]
[Result "1/2-1/2"]
[Round "05"]
[TimeControl "180+2"]
[Date "2023.03.14"]
[WhiteClock "0:00:13"]
[BlackClock "0:00:10"]

1. e4 {[%clk 0:01:12]}  c6 {[%clk 0:02:19]} 2. Nf3 {[%clk 0:01:12]}  d5 {[%clk 0:02:19]} 3. exd5 {[%clk 0:01:12]}  cxd5 {[%clk 0:02:19]} 4. Ne5 {[%clk 0:01:13]}  Nc6 {[%clk 0:02:18]} 5. d4 {[%clk 0:01:14]}  Nf6 {[%clk 0:02:17]} 6. c3 {[%clk 0:01:14]}  Bf5 {[%clk 0:02:06]} 7. Bb5 {[%clk 0:01:13]}  Qc7 {[%clk 0:02:04]} 8. Bf4 {[%clk 0:01:11]}  Qb6 {[%clk 0:02:02]} 9. c4 {[%clk 0:01:04]}  dxc4 {[%clk 0:01:57]} 10. Nc3 {[%clk 0:01:04]}  e6 {[%clk 0:01:53]} 11. Nxc4 {[%clk 0:01:01]}  Qd8 {[%clk 0:01:53]} 12. Ne5 {[%clk 0:00:57]}  Rc8 {[%clk 0:01:50]} 13. Qa4 {[%clk 0:00:57]}  Qb6 {[%clk 0:01:42]} 14. Nc4 {[%clk 0:00:54]}  Qd8 {[%clk 0:01:18]} 15. Ne5 {[%clk 0:00:54]}  Bd6 {[%clk 0:01:08]} 16. Nxc6 {[%clk 0:00:52]}  bxc6 {[%clk 0:01:08]} 17. Bxc6+ {[%clk 0:00:52]}  Ke7 {[%clk 0:01:09]} 18. Qxa7+ {[%clk 0:00:47]}  Rc7 {[%clk 0:01:09]} 19. Bxd6+ {[%clk 0:00:47]}  Qxd6 {[%clk 0:01:10]} 20. Bb7 {[%clk 0:00:35]}  Rd8 {[%clk 0:00:49]} 21. Qa6 {[%clk 0:00:23]}  Qxd4 {[%clk 0:00:37]} 22. O-O {[%clk 0:00:21]}  Rd6 {[%clk 0:00:34]} 23. Qa8 {[%clk 0:00:10]}  Rb6 {[%clk 0:00:31]} 24. Bf3 {[%clk 0:00:09]}  Rxb2 {[%clk 0:00:29]} 25. Qa3+ {[%clk 0:00:09]}  Qb4 {[%clk 0:00:25]} 26. Qxb4+ {[%clk 0:00:09]}  Rxb4 {[%clk 0:00:26]} 27. Rfc1 {[%clk 0:00:06]}  Rbc4 {[%clk 0:00:23]} 28. Ne2 {[%clk 0:00:06]}  g5 {[%clk 0:00:20]} 29. Rxc4 {[%clk 0:00:05]}  Rxc4 {[%clk 0:00:21]} 30. Rc1 {[%clk 0:00:05]}  Rxc1+ {[%clk 0:00:20]} 31. Nxc1 {[%clk 0:00:05]}  Kd6 {[%clk 0:00:20]} 32. h3 {[%clk 0:00:05]}  Kc5 {[%clk 0:00:20]} 33. Kf1 {[%clk 0:00:05]}  Kb4 {[%clk 0:00:20]} 34. Ke1 {[%clk 0:00:06]}  Ne4 {[%clk 0:00:20]} 35. Bxe4 {[%clk 0:00:03]}  Bxe4 {[%clk 0:00:21]} 36. f3 {[%clk 0:00:03]}  Bd5 {[%clk 0:00:21]} 37. Kd2 {[%clk 0:00:04]}  Bc4 {[%clk 0:00:19]} 38. Ke3 {[%clk 0:00:04]}  Kc3 {[%clk 0:00:17]} 39. Ne2+ {[%clk 0:00:02]}  Kb2 {[%clk 0:00:16]} 40. Nd4 {[%clk 0:00:02]}  Kxa2 {[%clk 0:00:15]} 41. Ke4 {[%clk 0:00:02]}  Bf1 {[%clk 0:00:15]} 42. g3 {[%clk 0:00:01]}  Bxh3 {[%clk 0:00:15]} 43. f4 {[%clk 0:00:01]}  gxf4 {[%clk 0:00:14]} 44. Kxf4 {[%clk 0:00:01]}  Kb2 {[%clk 0:00:13]} 45. Nf3 {[%clk 0:00:01]}  Kc3 {[%clk 0:00:13]} 46. Ng5 {[%clk 0:00:02]}  Bf5 {[%clk 0:00:07]} 47. Nxf7 {[%clk 0:00:02]}  Kd4 {[%clk 0:00:07]} 48. g4 {[%clk 0:00:03]}  Bg6 {[%clk 0:00:07]} 49. Ng5 {[%clk 0:00:03]}  e5+ {[%clk 0:00:07]} 50. Kf3 {[%clk 0:00:03]}  e4+ {[%clk 0:00:05]} 51. Ke2 {[%clk 0:00:04]}  h6 {[%clk 0:00:04]} 52. Nh3 {[%clk 0:00:04]}  Bf7 {[%clk 0:00:03]} 53. Nf4 {[%clk 0:00:04]}  Be8 {[%clk 0:00:02]} 54. Ng2 {[%clk 0:00:05]}  Bb5+ {[%clk 0:00:01]} 55. Kd2 {[%clk 0:00:04]}  Ba6 {[%clk 0:00:01]} 56. Ne3 {[%clk 0:00:05]}  Ke5 {[%clk 0:00:01]} 57. Ng2 {[%clk 0:00:04]}  Kd5 {[%clk 0:00:01]} 58. Ke3 {[%clk 0:00:05]}  Bd3 {[%clk 0:00:02]} 59. Nf4+ {[%clk 0:00:05]}  Ke5 {[%clk 0:00:02]} 60. Nxd3+ {[%clk 0:00:05]}  exd3 {[%clk 0:00:03]} 61. Kxd3 {[%clk 0:00:06]}  Kf4 {[%clk 0:00:04]} 62. Ke2 {[%clk 0:00:07]}  Kxg4 {[%clk 0:00:04]} 63. Kf1 {[%clk 0:00:08]}  Kh3 {[%clk 0:00:05]} 64. Kg1 {[%clk 0:00:09]}  h5 {[%clk 0:00:06]} 65. Kh1 {[%clk 0:00:09]}  h4 {[%clk 0:00:07]} 66. Kg1 {[%clk 0:00:10]}  Kg3 {[%clk 0:00:08]} 67. Kh1 {[%clk 0:00:11]}  h3 {[%clk 0:00:08]} 68. Kg1 {[%clk 0:00:12]}  h2+ {[%clk 0:00:09]} 69. Kh1 {[%clk 0:00:13]}  Kh3 {[%clk 0:00:10]} 1/2-1/2


[Site "https://www.chess.com"]

[Event "Titled Tuesday Blitz March 14 Late 2023"]
[White "Gallegos Diaz, Carlos Alberto"]
[Black "Comas Fabrego, Lluis"]
[WhiteFideId "3900886"]
[BlackFideId "2200325"]
[WhiteElo "2362"]
[BlackElo "2523"]
[Result "1-0"]
[Round "05"]
[TimeControl "180+2"]
[Date "2023.03.14"]
[WhiteClock "0:00:13"]
[BlackClock "0:00:01"]

1. e4 {[%clk 0:03:00]}  c5 {[%clk 0:02:59]} 2. Nf3 {[%clk 0:03:00]}  d6 {[%clk 0:02:59]} 3. d3 {[%clk 0:02:52]}  Nc6 {[%clk 0:02:58]} 4. Nbd2 {[%clk 0:02:51]}  g6 {[%clk 0:02:57]} 5. Be2 {[%clk 0:02:52]}  Bg7 {[%clk 0:02:57]} 6. h3 {[%clk 0:02:52]}  Nf6 {[%clk 0:02:57]} 7. O-O {[%clk 0:02:53]}  O-O {[%clk 0:02:57]} 8. c3 {[%clk 0:02:53]}  e5 {[%clk 0:02:51]} 9. Re1 {[%clk 0:02:54]}  b5 {[%clk 0:02:50]} 10. a3 {[%clk 0:02:54]}  a5 {[%clk 0:02:49]} 11. Bf1 {[%clk 0:02:54]}  Bb7 {[%clk 0:02:49]} 12. d4 {[%clk 0:02:54]}  exd4 {[%clk 0:02:47]} 13. cxd4 {[%clk 0:02:54]}  Nxd4 {[%clk 0:02:28]} 14. Nxd4 {[%clk 0:02:53]}  cxd4 {[%clk 0:02:28]} 15. Bxb5 {[%clk 0:02:53]}  Qb6 {[%clk 0:02:28]} 16. a4 {[%clk 0:02:48]}  d5 {[%clk 0:02:14]} 17. exd5 {[%clk 0:02:38]}  Nxd5 {[%clk 0:02:09]} 18. Nc4 {[%clk 0:02:33]}  Qf6 {[%clk 0:01:59]} 19. Ne5 {[%clk 0:02:16]}  Rfd8 {[%clk 0:01:39]} 20. Bd2 {[%clk 0:02:03]}  Nb4 {[%clk 0:01:34]} 21. Bxb4 {[%clk 0:01:31]}  axb4 {[%clk 0:01:34]} 22. Qb3 {[%clk 0:01:10]}  Qd6 {[%clk 0:01:20]} 23. Nxf7 {[%clk 0:01:02]}  Bd5 {[%clk 0:01:11]} 24. Nxd6 {[%clk 0:00:53]}  Bxb3 {[%clk 0:01:10]} 25. Bc4+ {[%clk 0:00:29]}  Bxc4 {[%clk 0:01:09]} 26. Nxc4 {[%clk 0:00:30]}  d3 {[%clk 0:01:09]} 27. Rad1 {[%clk 0:00:29]}  Rxa4 {[%clk 0:01:01]} 28. Re3 {[%clk 0:00:24]}  b3 {[%clk 0:01:01]} 29. Ne5 {[%clk 0:00:19]}  Bxe5 {[%clk 0:00:40]} 30. Rxe5 {[%clk 0:00:20]}  d2 {[%clk 0:00:36]} 31. Re2 {[%clk 0:00:19]}  Rad4 {[%clk 0:00:36]} 32. f3 {[%clk 0:00:19]}  Rd3 {[%clk 0:00:36]} 33. Kf2 {[%clk 0:00:19]}  Kf7 {[%clk 0:00:34]} 34. Re3 {[%clk 0:00:20]}  Kf6 {[%clk 0:00:20]} 35. Rxd3 {[%clk 0:00:19]}  Rxd3 {[%clk 0:00:20]} 36. Ke2 {[%clk 0:00:20]}  Rd5 {[%clk 0:00:20]} 37. Rxd2 {[%clk 0:00:21]}  Rb5 {[%clk 0:00:20]} 38. Rd6+ {[%clk 0:00:20]}  Ke5 {[%clk 0:00:18]} 39. Rd7 {[%clk 0:00:20]}  h5 {[%clk 0:00:19]} 40. Kd3 {[%clk 0:00:19]}  Kf4 {[%clk 0:00:18]} 41. Rg7 {[%clk 0:00:17]}  g5 {[%clk 0:00:18]} 42. h4 {[%clk 0:00:16]}  gxh4 {[%clk 0:00:16]} 43. Kc3 {[%clk 0:00:17]}  h3 {[%clk 0:00:13]} 44. gxh3 {[%clk 0:00:18]}  Kxf3 {[%clk 0:00:14]} 45. h4 {[%clk 0:00:15]}  Kf4 {[%clk 0:00:09]} 46. Kc4 {[%clk 0:00:16]}  Rf5 {[%clk 0:00:05]} 47. Rg8 {[%clk 0:00:15]}  Kf3 {[%clk 0:00:05]} 48. Kxb3 {[%clk 0:00:15]}  Rf4 {[%clk 0:00:05]} 49. Kc3 {[%clk 0:00:13]}  Rxh4 {[%clk 0:00:05]} 50. b4 {[%clk 0:00:14]}  Rh1 {[%clk 0:00:04]} 51. Rh8 {[%clk 0:00:14]}  h4 {[%clk 0:00:03]} 52. b5 {[%clk 0:00:14]}  h3 {[%clk 0:00:03]} 53. b6 {[%clk 0:00:14]}  Kg3 {[%clk 0:00:01]} 54. b7 {[%clk 0:00:13]}  Rb1 {[%clk 0:00:01]} 55. b8=Q+ {[%clk 0:00:13]} 1-0


[Site "https://www.chess.com"]

[Event "Titled Tuesday Blitz March 14 Late 2023"]
[White "Leonte, Sebastian-Marian"]
[Black "Manu_ChessExcelsior"]
[WhiteFideId "1268767"]
[WhiteElo "2337"]
[BlackElo "2016"]
[Result "1-0"]
[Round "05"]
[TimeControl "180+2"]
[Date "2023.03.14"]
[WhiteClock "0:02:03"]
[BlackClock "0:01:44"]

1. e4 {[%clk 0:03:00]}  c5 {[%clk 0:02:57]} 2. Nf3 {[%clk 0:03:00]}  Nc6 {[%clk 0:02:57]} 3. d4 {[%clk 0:03:00]}  cxd4 {[%clk 0:02:58]} 4. Nxd4 {[%clk 0:03:00]}  Nf6 {[%clk 0:02:58]} 5. Nc3 {[%clk 0:03:01]}  e5 {[%clk 0:02:59]} 6. Ndb5 {[%clk 0:03:01]}  d6 {[%clk 0:02:59]} 7. Bg5 {[%clk 0:03:01]}  a6 {[%clk 0:02:59]} 8. Na3 {[%clk 0:03:02]}  b5 {[%clk 0:03:00]} 9. Nd5 {[%clk 0:03:02]}  Be7 {[%clk 0:03:00]} 10. Bxf6 {[%clk 0:03:03]}  Bxf6 {[%clk 0:03:00]} 11. c3 {[%clk 0:03:04]}  O-O {[%clk 0:03:00]} 12. Nc2 {[%clk 0:03:03]}  Rb8 {[%clk 0:03:00]} 13. h4 {[%clk 0:03:03]}  Bxh4 {[%clk 0:02:59]} 14. Qh5 {[%clk 0:02:59]}  Bxf2+ {[%clk 0:02:31]} 15. Kxf2 {[%clk 0:02:57]}  h6 {[%clk 0:02:31]} 16. g4 {[%clk 0:02:42]}  Ne7 {[%clk 0:02:22]} 17. Nce3 {[%clk 0:02:28]}  Ng6 {[%clk 0:02:21]} 18. g5 {[%clk 0:02:13]}  Qxg5 {[%clk 0:02:00]} 19. Qxg5 {[%clk 0:02:12]}  hxg5 {[%clk 0:02:01]} 20. Bh3 {[%clk 0:02:07]}  Nf4 {[%clk 0:01:58]} 21. Ne7+ {[%clk 0:02:02]}  Kh7 {[%clk 0:01:44]} 22. Bxc8+ {[%clk 0:02:03]} 1-0


[Site "https://www.chess.com"]

[Event "Titled Tuesday Blitz March 14 Late 2023"]
[White "Gamage, Wanshini Vidusama"]
[Black "Bayo Milagro, Alvaro"]
[WhiteFideId "9953752"]
[BlackFideId "22275240"]
[WhiteElo "2258"]
[BlackElo "2270"]
[Result "1-0"]
[Round "05"]
[TimeControl "180+2"]
[Date "2023.03.14"]
[WhiteClock "0:01:32"]
[BlackClock "0:01:36"]

1. e4 {[%clk 0:03:00]}  e5 {[%clk 0:02:59]} 2. Nf3 {[%clk 0:03:00]}  Nc6 {[%clk 0:02:59]} 3. Bb5 {[%clk 0:03:00]}  a6 {[%clk 0:02:59]} 4. Ba4 {[%clk 0:02:59]}  Nge7 {[%clk 0:02:59]} 5. Nc3 {[%clk 0:02:57]}  d6 {[%clk 0:02:57]} 6. O-O {[%clk 0:02:54]}  Bd7 {[%clk 0:02:56]} 7. Re1 {[%clk 0:02:51]}  Ng6 {[%clk 0:02:56]} 8. Nd5 {[%clk 0:02:48]}  b5 {[%clk 0:02:55]} 9. Bb3 {[%clk 0:02:48]}  Na5 {[%clk 0:02:55]} 10. d4 {[%clk 0:02:42]}  exd4 {[%clk 0:02:54]} 11. e5 {[%clk 0:02:37]}  Be6 {[%clk 0:02:32]} 12. Nxd4 {[%clk 0:02:25]}  Nxe5 {[%clk 0:02:27]} 13. Nxe6 {[%clk 0:02:17]}  fxe6 {[%clk 0:02:26]} 14. f4 {[%clk 0:02:17]}  Nxb3 {[%clk 0:02:22]} 15. axb3 {[%clk 0:02:12]}  exd5 {[%clk 0:02:22]} 16. fxe5 {[%clk 0:02:12]}  dxe5 {[%clk 0:01:39]} 17. Rxe5+ {[%clk 0:02:10]}  Kd7 {[%clk 0:01:39]} 18. Rxd5+ {[%clk 0:01:48]}  Bd6 {[%clk 0:01:39]} 19. Bf4 {[%clk 0:01:48]}  Kc6 {[%clk 0:01:38]} 20. Qd3 {[%clk 0:01:34]}  Qf6 {[%clk 0:01:36]} 21. Rxa6+ {[%clk 0:01:32]} 1-0


[Site "https://www.chess.com"]